Cogmind - Beta 15 @@@ ROGUE MODE // 2025.05.15 @ 01:37:08 Player: harambe Result: Destroyed by S-27 Virus with Autogun Performance ------------- Evolutions (5) 2500 Regions Visited (12) 2400 Robots Destroyed (83) 415 Value Destroyed (3372) 3372 Prototype IDs (8) 160 Alien Tech Used (0) 0 Bonus (0) 0 TOTAL SCORE: 8847 Bonus ------- None Cogmind --------- Core Integrity 0/1000 Matter 295/300 Energy 99/100 System Corruption 22% Temperature Cool (0) Movement Core (50) Location -5/Upper Caves Parts ------- > --- POWER (2) -------- (None) > --- PROPULSION (7) --- (None) > --- UTILITY (6) ------ Enhanced Optical Array > --- WEAPON (2) ------- (None) > --- INVENTORY (5) ---- Matter Compressor (250) Advanced Shield Generator Improved Arc Projector Long-range Proton Cannon Coil Gun Peak State ------------ > --- POWER ------------ Fission Core Light Fission Core > --- PROPULSION ------- Light Treads Improved Titanium Leg Improved Titanium Leg Improved Titanium Leg Armored Wheel > --- UTILITY ---------- Huge Storage Unit Structural Scanner Improved Targeting Computer Improved Melee Analysis Suite Improved Light Armor Plating System Guard > --- WEAPON ----------- Heavy Machine Gun Advanced Assault Cannon > --- INVENTORY -------- Deuterium Engine Light Angular Momentum Engine Wheel Improved Heat Sink Large Storage Unit Large Battery Matter Compressor Energy Filter Improved Light Armor Plating Improved Shield Generator Component Analysis Suite Lightning Gun Lightning Gun Lightning Gun Proton Cannon Heavy Shock Bomb Launcher Mini Grenade Launcher Mini Grenade Launcher Missile Launcher Heavy Missile Launcher Precision Rocket Launcher Power Maul Axe [Rating: 58] Favorites ----------- Power Deuterium Engine Engine Deuterium Engine Power Core Light Fission Core Propulsion Improved Titanium Leg Treads Improved Treads Leg Improved Titanium Leg Wheel Armored Wheel Hover Unit Antigrav Array Flight Unit Makeshift Flight Unit Utility Improved Targeting Computer Device Structural Scanner Storage High-capacity Storage Unit Processor Improved Targeting Computer Protection Improved Light Armor Plating Weapon Lightning Gun Energy Gun Lightning Gun Energy Cannon Heavy Particle Cannon Ballistic Gun Heavy Assault Rifle Ballistic Cannon Advanced Assault Cannon Launcher Mini Grenade Launcher Impact Weapon Power Maul Slashing Weapon Katana Build | -11 -10 -9 -9 -8 -7 -6 -6 -5 -5 -5 -5 -5 ------- Run | Yrd Mat Mat Min Mat Fac Fac Ext Fac Was Fac Upp Upp Slots Evolved 10 | . . 2 . 2 2 2 . 2 . . . . Power 1 | . . . . . . 1 . . . . . . Propulsion 5 | . . . . . 2 1 . 2 . . . . Utility 4 | . . 2 . 2 . . . . . . . . Weapon . | . . . . . . . . . . . . . Parts Attached 96 | . 12 16 3 25 12 19 2 3 1 1 . 2 Power 10 | . . . 1 3 1 5 . . . . . . Engine 8 | . . . 1 3 1 3 . . . . . . Core 2 | . . . . . . 2 . . . . . . Reactor . | . . . . . . . . . . . . . Propulsion 28 | . 6 4 1 8 2 2 . 2 1 1 . 1 Treads 9 | . 2 3 . 3 . 1 . . . . . . Leg 4 | . . . . 2 2 . . . . . . . Wheel 11 | . 4 1 1 2 . 1 . 2 . . . . Hover 2 | . . . . . . . . . 1 1 . . Flight 2 | . . . . 1 . . . . . . . 1 Utility 32 | . 4 6 . 7 3 8 2 1 . . . 1 Device 14 | . 2 1 . 5 1 3 1 1 . . . . Storage 5 | . 1 1 . 1 1 1 . . . . . . Processor 5 | . . 2 . . . 2 . . . . . 1 Hackware . | . . . . . . . . . . . . . Protection 8 | . 1 2 . 1 1 2 1 . . . . . Artifact . | . . . . . . . . . . . . . Weapon 26 | . 2 6 1 7 6 4 . . . . . . Energy Gun 6 | . . . . 2 3 1 . . . . . . Energy Cannon 2 | . . . . 2 . . . . . . . . Ballistic Gun 10 | . 2 6 . 1 . 1 . . . . . . Ballistic Cannon 2 | . . . . 1 1 . . . . . . . Launcher 4 | . . . 1 . 2 1 . . . . . . Special Weapon . | . . . . . . . . . . . . . Impact Weapon 1 | . . . . . . 1 . . . . . . Slashing Weapon 1 | . . . . 1 . . . . . . . . Piercing Weapon . | . . . . . . . . . . . . . Special Melee Weapon . | . . . . . . . . . . . . . Unidentified Prototypes 1 | . . . . 1 . . . . . . . . Parts Lost 41 | . . 1 . 13 2 16 1 . . . 2 6 Power 3 | . . . . 1 . 2 . . . . . . Propulsion 14 | . . . . 3 . 6 . . . . 1 4 Utility 14 | . . 1 . 5 . 5 1 . . . 1 1 Weapon 10 | . . . . 4 2 3 . . . . . 1 Highest Loss Streak 13 | . . 1 . 6 1 13 1 . . . 2 6 To Critical Strikes 1 | . . . . 1 . . . . . . . . Average Backups 17 | . 11 17 20 19 22 23 4 5 4 4 5 5 Power 2 | . 1 2 3 4 4 2 . . . . . . Propulsion 3 | . 5 5 6 5 2 1 . . . . . . Utility 5 | . 3 5 7 4 7 9 2 2 2 2 2 2 Weapon 5 | . 1 3 4 5 8 10 2 2 2 2 3 3 Tool/Special . | . . . . . . . . . . . . . Unused Backups 53 | . 13 10 . 7 1 15 . 1 . . 1 5 Power 6 | . . 1 . 3 . 2 . . . . . . Propulsion 13 | . 3 8 . 2 . . . . . . . . Utility 17 | . 8 . . 1 . 6 . . . . . 2 Weapon 17 | . 2 1 . 1 1 7 . 1 . . 1 3 Tool/Special . | . . . . . . . . . . . . . Average Slot Usage (%) 86 | . 95 99 100 98 99 95 10 16 33 35 38 16 Engine 7 | . 14 11 11 8 7 6 . . . . . . Core 1 | . . . . . . 5 . . . . . . Treads 5 | . 10 11 11 7 . 5 . . . . . . Leg 10 | . 2 . . 3 29 23 . . . . . . Wheel 6 | . 15 11 11 6 . . . 5 11 11 11 4 Device 14 | . 7 1 . 27 23 17 3 10 11 11 9 2 Storage 8 | . 14 11 11 9 11 5 . . . . . . Processor 9 | . . 21 22 15 7 8 . . . . . 1 Protection 4 | . 3 9 11 1 3 5 6 . . . . . Energy Gun 4 | . 1 . . 5 5 9 . . . . . . Energy Cannon 1 | . . . . 5 . . . . . . . . Ballistic Gun 7 | . 26 22 21 3 . . . . . . . . Ballistic Cannon 1 | . . . . 1 7 . . . . . . . Peak Build Rating 58 | . 10 19 19 36 43 58 7 14 32 39 39 18 Average Rating 29 | . 7 17 18 26 40 49 5 11 28 33 35 11 On Entrance 18 | 6 6 10 19 19 28 42 1 6 14 32 39 18 Naked Turns 23 | . . . . . . 12 . . . . . 11 Heaviest Build 115 | 13 36 58 58 65 109 115 7 2 3 3 3 2 Greatest Support 80 | 20 32 23 12 46 80 80 3 3 3 12 3 8 Greatest Overweight (x) 11 | . 3 4 4 6 1 11 2 . . . . . Average Overweight (x) 1 | . 1 3 4 3 . 1 . . . . . . Largest Inventory Capacity 25 | . 15 20 20 20 25 25 5 5 5 5 5 5 Average Capacity 18 | . 12 17 20 20 23 24 5 5 5 5 5 5 Most Carried 25 | . 15 20 20 20 25 25 5 5 5 5 5 5 Average Carried 17 | . 11 16 19 19 22 23 4 4 4 4 4 5 Final Capacity 25 | 8 15 20 20 20 25 5 5 5 5 5 5 5 Final Carried 24 | 6 15 20 20 18 24 5 5 5 4 5 5 5 Class Distribution -------------------- 92% | Mutant 7% | Scavenger-Mutant Dominant Class ---------------- Mutant | -10/Materials Mutant | -9/Materials Mutant | -9/Mines Mutant | -8/Materials Mutant | -7/Factory Mutant | -6/Factory Mutant | -6/Extension Mutant | -5/Factory Mutant | -5/Waste Mutant | -5/Factory Mutant | -5/Upper Caves Mutant | -5/Upper Caves Resources | -11 -10 -9 -9 -8 -7 -6 -6 -5 -5 -5 -5 -5 ----------- Run | Yrd Mat Mat Min Mat Fac Fac Ext Fac Was Fac Upp Upp Matter Collected 3429 | 172 287 564 19 726 242 631 . . 718 . 60 10 Remotely . | . . . . . . . . . . . . . Salvage Created 4368 | . 228 485 44 1204 284 776 . . 1345 2 . . Parts 137 | . 14 29 3 49 11 31 . . . . . . Haulers Intercepted . | . . . . . . . . . . . . . Recyclers Shooed 2 | . . . . . 1 1 . . . . . . Parts Field Recycled . | . . . . . . . . . . . . . Retrieved Matter . | . . . . . . . . . . . . . Parts Self-Destructed 1 | . . . . . . . . . . . . 1 Prevented . | . . . . . . . . . . . . . Kills | -11 -10 -9 -9 -8 -7 -6 -6 -5 -5 -5 -5 -5 ------- Run | Yrd Mat Mat Min Mat Fac Fac Ext Fac Was Fac Upp Upp Combat Hostiles Destroyed 76 | . 6 13 4 25 7 14 . . 6 1 . . Melee 4 | . . . . 4 . . . . . . . . Guns 33 | . 6 12 1 10 1 3 . . . . . . Cannons 13 | . . . . 11 2 . . . . . . . AOE 22 | . . 1 3 . 3 8 . . 6 1 . . Classes Destroyed 15 | . 3 3 . 3 1 3 . . 1 1 . . Worker 3 | . 1 . 1 . . 1 . . . . . . Builder 1 | . . . . . . 1 . . . . . . Recycler 1 | . . . . . . 1 . . . . . . Operator 3 | . . 1 . 1 1 . . . . . . . Swarmer 8 | . 1 3 4 . . . . . . . . . Grunt 39 | . 5 7 . 17 3 7 . . . . . . Brawler 2 | . . . . 2 . . . . . . . . Duelist 2 | . . 1 . 1 . . . . . . . . Sentry 9 | . . 2 . 3 2 2 . . . . . . Specialist 2 | . . . . . . 2 . . . . . . Hunter 2 | . . . . 1 . 1 . . . . . . Programmer 3 | . . . . . 2 1 . . . . . . Heavy 2 | . . . . 1 . 1 . . . . . . Compactor 6 | . . . . . . . . . 6 . . . Assembled 1 | . . . . . . . . . . 1 . . Best Kill Streak 9 | . 3 4 5 4 3 9 . . 4 1 . . Combat Bots Only 6 | . 2 3 4 4 3 6 . . 4 1 . . Max Kills in Single Turn 2 | . 1 2 2 2 1 2 . . 1 1 . . Gunslinging 1 | . . 1 . 1 . . . . . . . . Exploded 2 | . . 1 2 . 1 2 . . 1 1 . . Melee 1 | . . . . 1 . . . . . . . . Uniques/NPCs Destroyed . | . . . . . . . . . . . . . Combat | -11 -10 -9 -9 -8 -7 -6 -6 -5 -5 -5 -5 -5 -------- Run | Yrd Mat Mat Min Mat Fac Fac Ext Fac Was Fac Upp Upp Hostile Shots Fired 776 | . 39 31 18 229 112 180 48 9 . 2 18 90 Missed 263 | . 12 4 4 56 53 68 25 2 . 1 5 33 Hits 513 | . 27 27 14 173 59 112 23 7 . 1 13 57 Melee 3 | . . . . 2 . . . . . . . 1 Projectile 510 | . 27 27 14 171 59 112 23 7 . 1 13 56 Critical Strikes 19 | . 1 . . 7 2 8 . . . . . 1 Damage Taken 8043 | . 320 340 109 2695 801 2184 246 83 43 64 187 971 Core 2262 | . 72 40 7 476 159 328 174 51 10 40 86 819 Absorbed by Shields . | . . . . . . . . . . . . . Regen/Repaired (Parts) 139 | . . . . . . 139 . . . . . . Core Remaining (%) 64 | 100 71 . 88 13 77 . 40 . . . . . Volleys Fired 253 | . 24 30 6 82 24 49 . . 37 1 . . Largest 2 | . 2 2 2 2 2 2 . . 1 1 . . Hottest 143 | . 40 46 46 143 110 110 . . 30 30 . . Shots Fired 436 | . 48 60 8 156 42 84 . . 37 1 . . Gun 288 | . 48 60 4 98 14 64 . . . . . . Cannon 85 | . . . . 58 20 7 . . . . . . Launcher 63 | . . . 4 . 8 13 . . 37 1 . . Special . | . . . . . . . . . . . . . Kinetic 213 | . 48 60 4 65 20 16 . . . . . . Thermal 91 | . . . . 91 . . . . . . . . Explosive 63 | . . . 4 . 8 13 . . 37 1 . . Electromagnetic 69 | . . . . . 14 55 . . . . . . Robot Hit Streak 35 | . 11 35 1 27 14 16 . . 13 3 . . Robot Miss Streak 5 | . 2 5 2 4 2 3 . . 1 . . . Penetration Max . | . . . . . . . . . . . . . Secondary Targets 3 | . . 1 . 2 . . . . . . . . Max Gunslinging Chain 1 | . . 1 . 1 . . . . . . . . Shots Hit Robots 333 | . 38 44 2 130 34 59 . . 25 1 . . Core Hits 168 | . 11 21 6 51 18 42 . . 18 1 . . Critical Kills . | . . . . . . . . . . . . . Critical Parts Destroyed 2 | . . . . 2 . . . . . . . . Critical Strikes 11 | . . . . 9 1 1 . . . . . . Burn 4 | . . . . 4 . . . . . . . . Destroy 2 | . . . . 2 . . . . . . . . Blast 2 | . . . . 2 . . . . . . . . Corrupt 2 | . . . . . 1 1 . . . . . . Sever 1 | . . . . 1 . . . . . . . . Melee Attacks 22 | . . . . 14 4 4 . . . . . . Impact 4 | . . . . . . 4 . . . . . . Slashing 18 | . . . . 14 4 . . . . . . . Piercing . | . . . . . . . . . . . . . Sneak Attacks 2 | . . . . 2 . . . . . . . . Combat Hostiles . | . . . . . . . . . . . . . Follow-up Attacks . | . . . . . . . . . . . . . Damage Inflicted 11047 | . 508 763 196 2613 1047 2421 . . 3442 50 . 7 Guns 3397 | . 508 669 27 1086 185 922 . . . . . . Cannons 1572 | . . . . 1103 420 49 . . . . . . Explosions 5582 | . . 94 169 . 377 1450 . . 3442 50 . . Melee 489 | . . . . 424 65 . . . . . . . Ramming 7 | . . . . . . . . . . . . 7 Kinetic 2619 | . 508 669 27 849 420 146 . . . . . . Thermal 1570 | . . 94 . 1340 . 136 . . . . . . Explosive 5343 | . . . 169 . 368 1314 . . 3442 50 . . Electromagnetic 1019 | . . . . . 194 825 . . . . . . Impact . | . . . . . . . . . . . . . Slashing 489 | . . . . 424 65 . . . . . . . Piercing . | . . . . . . . . . . . . . Highest Corruption 22 | . . 1 1 . 5 4 4 . 20 20 20 22 Average Corruption 6 | . . 1 1 . 3 3 4 . 12 20 20 21 Corruption Purged . | . . . . . . . . . . . . . Corruption Blocked . | . . . . . . . . . . . . . Effects 39 | . . 1 2 . 8 1 2 . 9 7 3 6 Message Errors 8 | . . 1 . . 2 . 2 . 1 1 . 1 Matter Fused 10 | . . . 1 . 3 . . . 2 3 . 1 Heat Flow Errors 3 | . . . . . . . . . 1 . 1 1 Energy Discharges 5 | . . . . . . 1 . . 1 1 1 1 Parts Rejected 1 | . . . . . 1 . . . . . . . Parts Fused 1 | . . . 1 . . . . . . . . . Data Loss (minor) 3 | . . . . . 1 . . . 2 . . . Data Loss (major) 2 | . . . . . . . . . . 1 1 . Misfires 1 | . . . . . 1 . . . . . . . Misdirections 5 | . . . . . . . . . 2 1 . 2 Overload Shots . | . . . . . . . . . . . . . Overflow Damage 172 | . . 41 . 45 58 28 . . . . . . Projectiles . | . . . . . . . . . . . . . Explosions 127 | . . 41 . . 58 28 . . . . . . Melee 45 | . . . . 45 . . . . . . . . Knockbacks 7 | . . . . 3 3 1 . . . . . . Impact . | . . . . . . . . . . . . . Kinetic 7 | . . . . 3 3 1 . . . . . . Secondary . | . . . . . . . . . . . . . Self-Inflicted Damage 351 | . . . . . 217 88 . . 43 . . 3 Shots 8 | . . . . . 3 3 . . 2 . . . Rammed 3 | . . . . . . . . . . 1 . 2 Targets Rammed 3 | . . . . . . . . . . 1 . 2 Kicked . | . . . . . . . . . . . . . Crushed . | . . . . . . . . . . . . . Highest Temperature 221 | . 37 4 . 221 . 74 . . 208 . 210 118 Average Temperature 39 | . 16 1 . 49 . 24 . . 120 . 110 78 Received Heat Transfer 2109 | . 174 150 . 1170 135 282 54 . . . . 144 Siege Activations . | . . . . . . . . . . . . . Martial Activations . | . . . . . . . . . . . . . Shielding Activations . | . . . . . . . . . . . . . Robots Disrupted . | . . . . . . . . . . . . . Combat Hostiles . | . . . . . . . . . . . . . Robots Corrupted 4 | . . . . . 1 3 . . . . . . Combat Hostiles 4 | . . . . . 1 3 . . . . . . Parts Fried 6 | . . . . . . 6 . . . . . . Impact Corruptions . | . . . . . . . . . . . . . Robots Melted . | . . . . . . . . . . . . . Combat Hostiles . | . . . . . . . . . . . . . Parts Melted 4 | . . . . 4 . . . . . . . . Heat Transferred 3234 | . . 100 . 3034 . 100 . . . . . . Parts Sabotaged . | . . . . . . . . . . . . . Parts Stolen . | . . . . . . . . . . . . . Parts Stripped . | . . . . . . . . . . . . . Power Chain Reactions 1 | . . . . . . 1 . . . . . . Alert | -11 -10 -9 -9 -8 -7 -6 -6 -5 -5 -5 -5 -5 ------- Run | Yrd Mat Mat Min Mat Fac Fac Ext Fac Was Fac Upp Upp Maximum Alert Level . | . . . . . . . . . . . . . Low Security (%) 100 | . 100 100 100 100 100 100 100 100 100 100 . . Level 1 . | . . . . . . . . . . . . . Level 2 . | . . . . . . . . . . . . . Level 3 . | . . . . . . . . . . . . . Level 4 . | . . . . . . . . . . . . . Level 5 . | . . . . . . . . . . . . . High Security . | . . . . . . . . . . . . . Max Security . | . . . . . . . . . . . . . Peak Influence 196 | . 71 162 110 192 196 181 76 54 105 59 . . Initial 88 | . . 14 33 11 74 88 76 . 15 59 . . Average 55 | . 18 92 56 90 47 31 46 11 77 34 . . Influence Increases 2637 | . 224 391 107 682 389 458 15 88 140 8 15 120 Destroy 0b10 Robot/C 1380 | . 120 260 80 500 140 280 . . . . . . Destroy 0b10 Robot/NC 40 | . 5 5 5 5 5 15 . . . . . . Destroy Leader 380 | . 40 60 10 130 50 90 . . . . . . Successful Hack 115 | . 28 17 . 4 24 14 . 28 . . . . Disable Machine 105 | . . 15 . . 90 . . . . . . . Destroy Structure 302 | . 1 19 12 13 50 59 . . 140 8 . . Partial Spotted 15 | . . . . . . . 15 . . . . . Lose Combat Pursuer 300 | . 30 15 . 30 30 . . 60 . . 15 120 Influence Decreases 2537 | . 189 341 162 546 375 481 171 45 99 86 17 25 Entered New Map 419 | . . 21 52 19 92 92 81 1 29 26 4 2 Time Decay 1804 | . 189 310 110 397 263 275 60 44 70 60 13 13 Lost Part 294 | . . 10 . 130 20 114 10 . . . . 10 Lost Ally 20 | . . . . . . . 20 . . . . . Squads Dispatched 29 | . 3 3 . 9 5 7 1 . . . . 1 Investigation 11 | . 3 1 . 4 1 1 1 . . . . . Extermination 3 | . . . . . 2 1 . . . . . . Reinforcement 11 | . . 2 . 2 2 5 . . . . . . Assault 1 | . . . . . . . . . . . . 1 Garrison 3 | . . . . 3 . . . . . . . . Intercept . | . . . . . . . . . . . . . Searches Triggered . | . . . . . . . . . . . . . Construction Impeded 2 | . . . . . 1 1 . . . . . . Haulers Reinforced . | . . . . . . . . . . . . . Active Scanning Responses . | . . . . . . . . . . . . . Cargo Convoy Interrupts . | . . . . . . . . . . . . . Stealth | -11 -10 -9 -9 -8 -7 -6 -6 -5 -5 -5 -5 -5 --------- Run | Yrd Mat Mat Min Mat Fac Fac Ext Fac Was Fac Upp Upp Distress Signals 7 | . 3 1 . 1 1 1 . . . . . . Communications Jammed . | . . . . . . . . . . . . . Distress Signals . | . . . . . . . . . . . . . Times Spotted 138 | . 13 16 4 33 13 16 7 4 6 6 3 17 Peak Tracking Total 16 | . 5 4 4 6 3 5 6 5 3 4 3 16 Tactical Retreats 12 | . 1 1 . 2 2 . . 2 . 1 1 2 Traps | -11 -10 -9 -9 -8 -7 -6 -6 -5 -5 -5 -5 -5 ------- Run | Yrd Mat Mat Min Mat Fac Fac Ext Fac Was Fac Upp Upp Traps Triggered 5 | . 1 . . 1 . . 1 1 . 1 . . Indirectly . | . . . . . . . . . . . . . Trap Hack Attempts . | . . . . . . . . . . . . . Triggered . | . . . . . . . . . . . . . Disarmed . | . . . . . . . . . . . . . Reprogrammed . | . . . . . . . . . . . . . Reused . | . . . . . . . . . . . . . Traps Extracted . | . . . . . . . . . . . . . Installed . | . . . . . . . . . . . . . Triggered . | . . . . . . . . . . . . . Machines | -11 -10 -9 -9 -8 -7 -6 -6 -5 -5 -5 -5 -5 ---------- Run | Yrd Mat Mat Min Mat Fac Fac Ext Fac Was Fac Upp Upp Machines Disabled 7 | . . 1 . . 6 . . . . . . . Max in Single Turn 4 | . . 1 . . 4 . . . . . . . Energy Cycler 2 | . . . . . . . 2 . . . . . Machines Repaired . | . . . . . . . . . . . . . Machines Dismantled . | . . . . . . . . . . . . . Machines Sabotaged . | . . . . . . . . . . . . . Overloaded Fab Kills . | . . . . . . . . . . . . . Hacking | -11 -10 -9 -9 -8 -7 -6 -6 -5 -5 -5 -5 -5 --------- Run | Yrd Mat Mat Min Mat Fac Fac Ext Fac Was Fac Upp Upp Machines Accessed 21 | . 5 2 . 3 2 5 2 2 . . . . Terminals 15 | . 5 2 . 1 1 2 2 2 . . . . Fabricators 1 | . . . . . . 1 . . . . . . Repair Stations 1 | . . . . . . 1 . . . . . . Recycling Units . | . . . . . . . . . . . . . Scanalyzers 3 | . . . . 2 . 1 . . . . . . Garrison Access 1 | . . . . . 1 . . . . . . . Total Hacks 77 | . 20 7 . 20 4 13 7 6 . . . . Successful 38 | . 8 2 . 14 1 8 3 2 . . . . Failed 39 | . 12 5 . 6 3 5 4 4 . . . . Catastrophic 6 | . 1 1 . . 2 . 1 1 . . . . Database Lockouts . | . . . . . . . . . . . . . Manual 30 | . 11 7 . 3 . 5 2 2 . . . . Terminals 51 | . 20 7 . 3 2 6 7 6 . . . . Fabricators 2 | . . . . . . 2 . . . . . . Repair Stations 3 | . . . . . . 3 . . . . . . Recycling Units . | . . . . . . . . . . . . . Scanalyzers 19 | . . . . 17 . 2 . . . . . . Garrison Access 2 | . . . . . 2 . . . . . . . Terminal Hacks 12 | . 6 . . . 1 1 2 2 . . . . Robot Analysis 2 | . 2 . . . . . . . . . . . Prototype ID Bank 2 | . 1 . . . 1 . . . . . . . Open Door 1 | . . . . . . . 1 . . . . . Locate Traps 7 | . 3 . . . . 1 1 2 . . . . Fabricator Hacks 2 | . . . . . . 2 . . . . . . Load Schematic 1 | . . . . . . 1 . . . . . . Build 1 | . . . . . . 1 . . . . . . Repair Station Hacks 2 | . . . . . . 2 . . . . . . Scan Component 1 | . . . . . . 1 . . . . . . Repair 1 | . . . . . . 1 . . . . . . Recycling Unit Hacks . | . . . . . . . . . . . . . Scanalyzer 16 | . . . . 14 . 2 . . . . . . Insert Component 9 | . . . . 8 . 1 . . . . . . Analyze 7 | . . . . 6 . 1 . . . . . . Garrison Access Hacks . | . . . . . . . . . . . . . Unauthorized Hacks 6 | . 2 2 . . . 1 1 . . . . . Terminals 6 | . 2 2 . . . 1 1 . . . . . Botnet 6 | . 2 2 . . . 1 1 . . . . . Fabricators . | . . . . . . . . . . . . . Repair Stations . | . . . . . . . . . . . . . Recycling Units . | . . . . . . . . . . . . . Scanalyzers . | . . . . . . . . . . . . . Garrison Access . | . . . . . . . . . . . . . Data Cores Recovered 2 | . . 1 . . 1 . . . . . . . Used 1 | . . . . . 1 . . . . . . . Hacking Detections 21 | . 5 2 . 3 2 5 2 2 . . . . Full Trace Events 10 | . 3 1 . 3 1 1 1 . . . . . Feedback Events 2 | . . 1 . . 1 . . . . . . . Corruption 2 | . . 1 . . 1 . . . . . . . Feedback Blocked . | . . . . . . . . . . . . . Robot Schematics Acquired . | . . . . . . . . . . . . . Robots Built . | . . . . . . . . . . . . . Authchips . | . . . . . . . . . . . . . Time . | . . . . . . . . . . . . . Total Robot Build Rating . | . . . . . . . . . . . . . Part Schematics Acquired 6 | . . . . 6 . . . . . . . . Parts Built 2 | . . . . . . 2 . . . . . . Authchips . | . . . . . . . . . . . . . Time 62 | . . . . . . 62 . . . . . . Total Part Build Rating 4 | . . . . . . 4 . . . . . . Parts Repaired 1 | . . . . . . 1 . . . . . . Time 44 | . . . . . . 44 . . . . . . Parts Recycled . | . . . . . . . . . . . . . Recycled Matter . | . . . . . . . . . . . . . Retrieved Matter . | . . . . . . . . . . . . . Retrieved Components . | . . . . . . . . . . . . . Parts Scanalyzed 8 | . . . . 7 . 1 . . . . . . Part Schematics Acquired 6 | . . . . 6 . . . . . . . . Parts Damaged . | . . . . . . . . . . . . . Bothacking | -11 -10 -9 -9 -8 -7 -6 -6 -5 -5 -5 -5 -5 ------------ Run | Yrd Mat Mat Min Mat Fac Fac Ext Fac Was Fac Upp Upp Used RIF Installer . | . . . . . . . . . . . . . Robots Hacked . | . . . . . . . . . . . . . Non-combat . | . . . . . . . . . . . . . Combat . | . . . . . . . . . . . . . Robot Hacks Applied . | . . . . . . . . . . . . . Relay Couplers Released . | . . . . . . . . . . . . . Fabnet Peak Effective % . | . . . . . . . . . . . . . Robots Rewired . | . . . . . . . . . . . . . Allies Hacked . | . . . . . . . . . . . . . Hacks Repelled . | . . . . . . . . . . . . . Allies | -11 -10 -9 -9 -8 -7 -6 -6 -5 -5 -5 -5 -5 -------- Run | Yrd Mat Mat Min Mat Fac Fac Ext Fac Was Fac Upp Upp Total Allies 1 | . . . . . . . 1 . . . . . Largest Group 1 | . . . . . . . 1 . . . . . Highest-Rated Group 20 | . . . . . . . 20 . . . . . Highest-Rated Ally 20 | . . . . . . . 20 . . . . . Total Orders . | . . . . . . . . . . . . . Ally Attacks . | . . . . . . . . . . . . . Total Damage . | . . . . . . . . . . . . . Kills . | . . . . . . . . . . . . . Allies Corrupted . | . . . . . . . . . . . . . Allies Melted . | . . . . . . . . . . . . . Intel | -11 -10 -9 -9 -8 -7 -6 -6 -5 -5 -5 -5 -5 ------- Run | Yrd Mat Mat Min Mat Fac Fac Ext Fac Was Fac Upp Upp Active Infowar (turns) 3537 | . 119 104 . 1016 683 1096 . 135 149 122 86 27 Optics 27 | . . . . . . . . . . . . 27 Sensors 753 | . 119 . . 142 . . . 135 149 122 86 . Terrain 2432 | . . 104 . 874 683 771 . . . . . . Structural 2652 | . . . . 873 683 1096 . . . . . . Robot Analysis Total 2 | . 2 . . . . . . . . . . . Derelict Logs Recovered . | . . . . . . . . . . . . . Drone Launches . | . . . . . . . . . . . . . Drone Recoveries . | . . . . . . . . . . . . . Exploration | -11 -10 -9 -9 -8 -7 -6 -6 -5 -5 -5 -5 -5 ------------- Run | Yrd Mat Mat Min Mat Fac Fac Ext Fac Was Fac Upp Upp Turns Passed 5006 | . 549 684 229 1019 683 1108 126 143 149 122 110 84 Spaces Moved 3253 | 1 385 390 139 382 300 437 210 269 145 224 217 154 Core 1224 | . . . . . . 23 210 269 145 223 217 137 Treads 27 | . 1 14 . 12 . . . . . . . . Legs 784 | 1 26 . . 62 300 395 . . . . . . Wheels 1201 | . 358 376 139 308 . 19 . . . 1 . . Hover . | . . . . . . . . . . . . . Flight 17 | . . . . . . . . . . . . 17 Fastest Speed 50 | 120 90 120 150 150 130 50 50 50 50 50 50 50 Average Speed 117 | 120 107 139 150 165 187 194 50 50 50 50 50 50 Slowest Speed 320 | 120 160 240 150 320 200 270 150 50 50 90 50 55 Overloaded Moves . | . . . . . . . . . . . . . Propulsion Burnouts . | . . . . . . . . . . . . . Robots Hopped . | . . . . . . . . . . . . . Potential Cave-ins . | . . . . . . . . . . . . . Cave-ins Triggered . | . . . . . . . . . . . . . Exploration Rate (%) 29 | 2 68 27 39 35 12 15 31 9 66 6 42 27 Regions Visited 12 Branch Regions 4 Pre-discovered Areas . | . . . . . . . . . . . . . Known Exits Taken . | . . . . . . . . . . . . . Unknown Exits Taken 10 | 1 1 1 1 1 1 1 1 . . 1 1 . Scrap Searched 3 | . . . . . . . . . . . 2 1 Spaces Dug 4 | . . . . . . 4 . . . . . . Terrain Destroyed 322 | . . 17 15 9 78 67 . . 130 6 . . Melee 4 | . . . . . . 4 . . . . . . Projectile 12 | . . . . 9 . 3 . . . . . . AOE 306 | . . 17 15 . 78 60 . . 130 6 . . Terrain Rammed . | . . . . . . . . . . . . . Walls Destroyed . | . . . . . . . . . . . . . Machines Disabled . | . . . . . . . . . . . . . Actions | -11 -10 -9 -9 -8 -7 -6 -6 -5 -5 -5 -5 -5 --------- Run | Yrd Mat Mat Min Mat Fac Fac Ext Fac Was Fac Upp Upp Total 3993 | . 483 484 150 598 371 610 229 277 183 231 218 159 Wait 132 | . 16 5 . 41 9 61 . . . . . . Move 3243 | . 384 389 138 381 299 436 209 269 144 224 216 154 Hop . | . . . . . . . . . . . . . Pick Up 112 | . 25 22 1 26 14 17 1 3 . 2 1 . Fast Attach 17 | . 3 . . 2 1 2 1 2 1 3 . 2 Attach 42 | . . 3 . 17 5 13 2 1 1 . . . Detach 1 | . . . . . . . 1 . . . . . Swap 63 | . 10 13 4 15 9 12 . . . . . . Drop 90 | . 21 22 1 20 6 16 . 2 . 1 1 . Fire 253 | . 24 30 6 82 24 49 . . 37 1 . . Melee 22 | . . . . 14 4 4 . . . . . . Ram 3 | . . . . . . . . . . . . 3 Kick . | . . . . . . . . . . . . . Crush . | . . . . . . . . . . . . . Escape Stasis 15 | . . . . . . . 15 . . . . . Rewire . | . . . . . . . . . . . . . Trap . | . . . . . . . . . . . . . Miscellaneous . | . . . . . . . . . . . . . Route ------- -11/Scrapyard -10/Materials (discovered 3 exits: *Mat x3) -9/Materials -9/Mines -8/Materials -7/Factory -6/Factory -6/Extension -5/Factory -5/Waste -5/Factory -5/Upper Caves -5/Upper Caves History --------- Turn | Location | Event 1 | -11/Scrapyard | Discovered new exit (range 0) 1 | -11/Scrapyard | Entered Materials 146 | -10/Materials | Discovered new exit (range 9) 257 | -10/Materials | Discovered new exit (range 5) 300 | -10/Materials | Build established: Mutant 467 | -10/Materials | Discovered new exit (range 7) 550 | -10/Materials | Entered another Materials area 550 | -9/Materials | Evolved 2 slots: Utility x2 603 | -9/Materials | Discovered new exit (range 12) 1234 | -9/Materials | Entered Mines 1454 | -9/Mines | Discovered new exit (range 6) 1463 | -9/Mines | Entered Materials 1463 | -8/Materials | Evolved 2 slots: Utility x2 1613 | -8/Materials | Garrison activated, responded to threat 1664 | -8/Materials | Lost 6 parts (2n2u2w) 2201 | -8/Materials | Core integrity fell below 50% 2326 | -8/Materials | Build established: Scavenger-Mutant 2466 | -8/Materials | Discovered new exit (range 9) 2467 | -8/Materials | Core integrity fell below 20% 2482 | -8/Materials | Entered Factory 2482 | -7/Factory | Evolved 2 slots: Propulsion x2 2676 | -7/Factory | Build established: Mutant 3135 | -7/Factory | Discovered new exit (range 15) 3165 | -7/Factory | Entered another Factory area 3165 | -6/Factory | Evolved 2 slots: Power x1, Propulsion x1 3302 | -6/Factory | Fabricated Arm. Wheel? 4074 | -6/Factory | Repaired Imp. Titanium Leg 4228 | -6/Factory | Lost 13 parts (2p4n5u2w) 4261 | -6/Factory | Released all parts (10) 4265 | -6/Factory | Discovered new exit (range 16) 4273 | -6/Factory | Entered Extension 4281 | -6/Extension | Lost 3 parts (2n1w) 4322 | -6/Extension | Rescued a captive Derelict 4338 | -6/Extension | Energy Cycler disabled 4339 | -6/Extension | Rescued a captive Derelict 4342 | -6/Extension | Rescued a captive Derelict 4346 | -6/Extension | Rescued a captive Derelict 4351 | -6/Extension | Rescued a captive Derelict 4390 | -6/Extension | Spotted B-75 Beast 4393 | -6/Extension | Discovered new exit (range 15) 4393 | -6/Extension | Spotted B-75 Beast 4396 | -6/Extension | Core integrity fell below 50% 4399 | -6/Extension | Entered Factory 4399 | -5/Factory | Evolved 2 slots: Propulsion x2 4542 | -5/Factory | Manually triggered Chute Trap 4542 | -5/Factory | Sucked down chute 4542 | -5/Factory | Entered Waste 4547 | -5/Waste | Spotted C-40 Crusher 4557 | -5/Waste | EMP discharged 4557 | -5/Waste | System corruption reached 10% 4568 | -5/Waste | Destroyed C-40 Crusher 4588 | -5/Waste | Spotted C-40 Crusher 4608 | -5/Waste | Destroyed C-40 Crusher 4611 | -5/Waste | Spotted C-40 Crusher 4614 | -5/Waste | Spotted C-40 Crusher 4617 | -5/Waste | Spotted C-40 Crusher 4627 | -5/Waste | Destroyed C-40 Crusher 4642 | -5/Waste | Destroyed C-40 Crusher 4645 | -5/Waste | Destroyed C-40 Crusher 4652 | -5/Waste | Spotted C-40 Crusher 4657 | -5/Waste | EMP discharged 4669 | -5/Waste | Destroyed C-40 Crusher 4684 | -5/Waste | Discovered new exit (range 16) 4691 | -5/Waste | Entered Factory 4811 | -5/Factory | Discovered new exit (range 4) 4813 | -5/Factory | Entered Upper Caves 4893 | -5/Upper Caves | Spotted B-75 Beast 4916 | -5/Upper Caves | Discovered new exit (range 10) 4923 | -5/Upper Caves | Entered another Upper Caves area 4950 | -5/Upper Caves | Attracted the attention of an 0b10 outpost 4967 | -5/Upper Caves | Core integrity fell below 50% 4984 | -5/Upper Caves | Core integrity fell below 20% 4986 | -5/Upper Caves | Encountered a Warlord checkpoint 4990 | -5/Upper Caves | Attracted the attention of an 0b10 checkpoint 5007 | -5/Upper Caves | Destroyed by S-27 Virus with Autogun Last Messages --------------- 04967_ Gyrokinetic Inverter destroyed. 04977_ Searching scrap... 04977_ Found Mass Driver. 04977_ Found Mak. Flight Unit. 04977_ Found Enh. Optical Array. 04977_ Found Adv. Plasma Cannon. 04977_ Found 31 Matter. 04978_ Acquired Mak. Flight Unit. 04979_ Acquired 10 matter. 04980_ Acquired Enh. Optical Array. 04983_ System corrupted: Energy discharge (-24). 04986_ NK-3FM(M): "Estimated chance of a MAIN.C patrol making it through here: 0%. Unless they've got a Behemoth in tow, in which case it's probably closer to 100%." 04990_ Y-64 Sentinel: "INTERCEPTING UNREGISTERED DERELICT." 04990_ Mak. Flight Unit destroyed. 04995_ S-27 Virus suffers critical hit (Destroy). 04995_ S-27 Virus destroyed. 05001_ VTOL Module fries itself beyond repair. 05002_ System corrupted: Heat flow error (+158). Map ----- +----------------------------------------------------+ | ?????????????????????????????????????????????????? | | ???????????????????????????????????????????#?????? | | ?????????????????????????????????????????### ????? | | ????????????????????????????????# ??#### ???? | | ????????????????????????????????? ??? ??? | | ???????????????????????????? ???? #???? #?? | | ???????????????????????????? ???? #?????# #? | | ???????????????????????????? ????? ??????# # | | ???????????????????????????? ?????# #??????# | | ??????????????????????????? #???## #???????# | | ??????????????????????????? ???# ##??????# | | ??????????????????????????? ??## ##?????#### | | ????????????????????? ???# ??# #????????? | | ???????????????????? ???# #???# #????????# | | ???????????????????? ??# #????# #######??# | | ????????????????????? ## ##???# #### | | ????????????????????? # #???# ## | | ????????????????????? #??# ]# | | ??????????????????????? #### ] % | | ??????????????????????????# ## # ## | | ?????????????????##????????# ## ## | | ?????????????????# #?####??# ## | | ?????????????????# ## ##?# #### | | ?????????????????# ### #??? | | ??????????#####??#### ## # #### #??? | | ??????????# ####### @## ## #??# #??? | | ??????????# ## ## #### ##? | | ??????????## s %### #? | | ???????????## ss % #? | | ????????????###### [ ####### # | | ?????????????????## ### Y #?????? # | | ??????????????????# ### #??? ? | | ?????????????????# ##?# #??? | | ?????????????????# ##??## ? | | ?????????????????#### #####????### ### # | | ????????????????????####??????????####??####? | | ?????????????????????????????????????????????? | | ??????????????????????????????????????????????? | | ???????????????????????????????????????????????? | | ????????????????????????????????????????????????? | | ?????????????????????????????????????????????????? | | ?????????????????????????????????????????????????? | | ?????????????????????????????????????????????????? | | ?????????????????????????????????????????????????? | | ?????????????????????????????????????????????????? | | ?????????????????????????????????????????????????? | | ?????????????????????????????????????????????????? | | ?????????????????????????????????????????????????? | | ?????????????????????????????????????????????????? | | ?????????????????????????????????????????????????? | +----------------------------------------------------+ Best States ------------- Heat Dissipation 70 Energy Generation 31 Energy Capacity 450 Matter Stores 444 Matter Capacity 500 Sight Range 22 Robot Scan Range 16 Terrain Scan Range 14 Terrain Scan Density 10 Corruption Containment 8 Armor Coverage 225 Evasion (%) 59 Targeting Accuracy 12 Melee Accuracy 6 Recoil Reduction 2 Energy Filtering 30 Item Schematics ----------------- Imp. Treads | -8/Materials | Scanalyzed Arm. Wheel | -8/Materials | Scanalyzed Lrg. Storage Unit | -8/Materials | Scanalyzed Hcp. Matter Pod | -8/Materials | Scanalyzed Imp. Ion Engine | -8/Materials | Scanalyzed Adv. Beam Rifle | -8/Materials | Scanalyzed Robot Schematics ------------------ None Fabricated ------------ Arm. Wheel | x2 | -6/Factory Repaired ---------- Imp. Titanium Leg | 15% | -6/Factory Alien Tech Used ----------------- None Achievements -------------- Wheee! Challenges ------------ None Game ------ Seed SmartbombAmuletCannon Manual? 0 Play Time 01:50:17 Cumulative 186.1 hours Start 2025.05.14 @ 23:39:24 End 2025.05.15 @ 01:37:08 Sessions 1 Manual Loads 0 Difficulty Rogue Special Mode None Game No. 95 Rogue 95 Adventurer 0 Explorer 0 Win Type - Total 3 Types 3/0/0/0/0/0/0/0/0/0 Lore% 32 Gallery% 49 Achievement% 42 Wizard Run 0 Options --------- Layout 0 ASCII 0 Keyboard 0 Movement Mouse Keybinds 0 Fullscreen 1 Font 18/SmallcapsGlow Map View 76x50 Zoom Use 0% Tactical HUD 1 Map Filters NONE Filters NONE Steam 1 RUN: 2842268c-e528-465e-bf60-4da938de1bd4